Cogmind - Beta 16 @@@ ROGUE MODE // 2025.10.25 @ 15:16:36 Player: mirus Result: Destroyed by G-47 Trooper with Particle Gun Performance ------------- Evolutions (2) 1000 Regions Visited (4) 800 Robots Destroyed (18) 90 Value Destroyed (648) 648 Prototype IDs (2) 40 Alien Tech Used (0) 0 Bonus (0) 0 TOTAL SCORE: 2578 Bonus ------- None Cogmind --------- Core Integrity 0/550 Matter 294/300 Energy 100/100 System Corruption 0% Temperature Cool (19) Movement Core (700) Ox13 Location -8/Materials Parts ------- > --- POWER (2) -------- (None) > --- PROPULSION (3) --- (None) > --- UTILITY (3) ------ Coolant Injector High-capacity Storage Unit > --- WEAPON (3) ------- (None) > --- INVENTORY (20) --- Large Battery (200) Compact Matter Pod (0) Advanced Visual Processing Unit Recoil Stabilizer Improved Trap Extractor (0/6) Peak State ------------ > --- POWER ------------ Ion Engine Cooled Ion Engine > --- PROPULSION ------- Wheel Armored Wheel Airjet > --- UTILITY ---------- Coolant Injector High-capacity Storage Unit Light Armor Plating > --- WEAPON ----------- Beam Rifle Heavy Assault Rifle Flak Gun > --- INVENTORY -------- Wheel Large Battery Large Matter Pod Compact Matter Pod Advanced Visual Processing Unit Recoil Stabilizer Improved Trap Extractor EM Pulse Gun Small Laser [Rating: 25] Favorites ----------- Power Light Ion Engine Engine Light Ion Engine Power Core Nuclear Core Propulsion Wheel Wheel Wheel Hover Unit Airjet Utility High-capacity Storage Unit Device Heat Sink Storage High-capacity Storage Unit Protection Light Armor Plating Weapon EM Pulse Gun Energy Gun EM Pulse Gun Ballistic Gun Assault Rifle Launcher Grenade Launcher Build | -11 -10 -10 -9 -8 ------- Run | Yrd Mat Min Mat Mat Slots Evolved 4 | . . . 2 2 Power 1 | . . . . 1 Propulsion 1 | . . . . 1 Utility 1 | . . . 1 . Weapon 1 | . . . 1 . Parts Attached 32 | 6 4 6 10 6 Power 4 | 1 . 1 2 . Engine 3 | 1 . . 2 . Core 1 | . . 1 . . Reactor . | . . . . . Propulsion 5 | 2 . . 2 1 Treads . | . . . . . Leg . | . . . . . Wheel 4 | 2 . . 2 . Hover 1 | . . . . 1 Flight . | . . . . . Utility 12 | 1 4 3 2 2 Device 3 | 1 . 1 . 1 Storage 5 | . 2 1 1 1 Processor . | . . . . . Hackware . | . . . . . Protection 4 | . 2 1 1 . Artifact . | . . . . . Weapon 11 | 2 . 2 4 3 Energy Gun 4 | 1 . . 2 1 Energy Cannon . | . . . . . Ballistic Gun 6 | 1 . 2 1 2 Ballistic Cannon . | . . . . . Launcher 1 | . . . 1 . Special Weapon . | . . . . . Impact Weapon . | . . . . . Slashing Weapon . | . . . . . Piercing Weapon . | . . . . . Special Melee Weapon . | . . . . . Unidentified Prototypes 2 | . . . 2 . Parts Lost 17 | . . 2 2 13 Power 3 | . . 1 . 2 Propulsion 4 | . . . . 4 Utility 3 | . . . 1 2 Weapon 7 | . . 1 1 5 Highest Loss Streak 13 | . . 1 2 13 To Critical Strikes . | . . . . . Average Backups 5 | 2 6 5 5 6 Power . | . . . . . Propulsion 1 | 2 3 1 1 . Utility 2 | . 1 2 3 5 Weapon . | . 1 . . . Tool/Special . | . . . . . Unused Backups 8 | . 4 2 . 2 Power . | . . . . . Propulsion 5 | . 3 2 . . Utility 3 | . 1 . . 2 Weapon . | . . . . . Tool/Special . | . . . . . Average Slot Usage (%) 95 | . 90 99 98 82 Engine 10 | . 14 12 4 15 Core 2 | . . 1 6 . Wheel 25 | . 28 28 22 20 Device 1 | . 5 . . 5 Storage 15 | . 10 14 21 12 Protection 9 | . 3 13 10 7 Energy Gun 11 | . 14 14 7 11 Ballistic Gun 13 | . 14 13 15 9 Launcher 3 | . . . 9 . Peak Build Rating 25 | 6 7 15 23 25 Average Rating 12 | 3 6 8 18 17 On Entrance 8 | . 6 7 15 14 Avg Prop Armor Cover (%) . | . . . . . Naked Turns . | . . . . . Heaviest Build 67 | 8 50 50 67 67 Greatest Support 32 | 20 20 20 24 32 Greatest Overweight (x) 14 | . 2 2 4 14 Average Overweight (x) 1 | . 1 1 2 1 Largest Inventory Capacity 25 | 5 25 20 20 20 Average Capacity 16 | 5 16 14 19 20 Most Carried 10 | 5 8 6 10 9 Average Carried 5 | 2 5 5 5 6 Final Capacity 20 | 5 20 5 20 20 Final Carried 9 | 5 5 5 9 5 Class Distribution -------------------- 65% | Mutant 32% | Tank Dominant Class ---------------- Mutant | -10/Materials Mutant | -10/Mines Tank | -9/Materials Mutant | -8/Materials Resources | -11 -10 -10 -9 -8 ----------- Run | Yrd Mat Min Mat Mat Matter Collected 797 | 249 81 33 378 56 Remotely . | . . . . . Salvage Created 699 | 61 84 75 287 192 Parts 32 | 5 3 1 13 10 Haulers Intercepted . | . . . . . Recyclers Shooed 1 | . . 1 . . Parts Field Recycled . | . . . . . Retrieved Matter . | . . . . . Parts Self-Destructed . | . . . . . Prevented . | . . . . . Parts Restored . | . . . . . Kills | -11 -10 -10 -9 -8 ------- Run | Yrd Mat Min Mat Mat Combat Hostiles Destroyed 17 | 1 2 2 8 4 Guns 14 | 1 2 1 6 4 AOE 3 | . . 1 2 . Classes Destroyed 4 | 2 . . 2 . Worker 1 | 1 . . . . Swarmer 2 | . . . 2 . Grunt 13 | 1 2 2 5 3 Sentry 2 | . . . 1 1 Best Kill Streak 5 | 1 2 1 5 2 Combat Bots Only 5 | 1 2 1 5 2 Max Kills in Single Turn 1 | 1 1 1 1 1 Gunslinging . | . . . . . Exploded 1 | . . 1 1 . Melee . | . . . . . Uniques/NPCs Destroyed . | . . . . . Combat | -11 -10 -10 -9 -8 -------- Run | Yrd Mat Min Mat Mat Hostile Shots Fired 207 | 1 9 16 66 115 Missed 49 | 1 2 4 15 27 Hits 158 | . 7 12 51 88 Projectile 158 | . 7 12 51 88 Damage Taken 2611 | . 88 260 838 1425 Core 828 | . 28 41 205 554 Absorbed by Shields . | . . . . . Regen/Repaired (Parts) 29 | . 29 . . . Core Remaining (%) 73 | 100 . 72 48 . Volleys Fired 60 | 3 7 9 22 19 Largest 3 | 2 2 2 3 3 Hottest 108 | 60 60 60 104 108 Shots Fired 138 | 6 14 16 59 43 Gun 133 | 6 14 16 54 43 Cannon . | . . . . . Launcher 5 | . . . 5 . Special . | . . . . . Kinetic 83 | 3 7 6 37 30 Thermal 24 | . . . 14 10 Explosive 5 | . . . 5 . Electromagnetic 26 | 3 7 10 3 3 Robot Hit Streak 6 | 1 4 4 4 6 Robot Miss Streak 5 | 1 2 3 5 5 Penetration Max . | . . . . . Secondary Targets 4 | . 1 . 1 2 Max Gunslinging Chain 1 | . 1 . 1 1 Shots Hit Robots 76 | 3 9 9 24 31 Core Hits 50 | 2 5 4 11 28 Critical Kills . | . . . . . Critical Parts Destroyed . | . . . . . Critical Strikes . | . . . . . Melee Attacks . | . . . . . Impact . | . . . . . Slashing . | . . . . . Piercing . | . . . . . Sneak Attacks . | . . . . . Combat Hostiles . | . . . . . Follow-up Attacks . | . . . . . Damage Inflicted 1544 | 51 122 321 522 528 Guns 1237 | 51 122 130 406 528 Cannons . | . . . . . Explosions 293 | . . 191 102 . Melee . | . . . . . Ramming 14 | . . . 14 . Kinetic 883 | 26 79 51 313 414 Thermal 351 | . . 191 69 91 Explosive 102 | . . . 102 . Electromagnetic 194 | 25 43 79 24 23 Impact . | . . . . . Slashing . | . . . . . Piercing . | . . . . . Highest Corruption 1 | . 1 1 . . Average Corruption 1 | . 1 1 . . Corruption Purged . | . . . . . Corruption Blocked . | . . . . . Effects 5 | . 1 4 . . Message Errors 3 | . . 3 . . Parts Fused 1 | . 1 . . . Misfires 1 | . . 1 . . Overload Shots . | . . . . . Overflow Damage . | . . . . . Projectiles . | . . . . . Explosions . | . . . . . Melee . | . . . . . Knockbacks . | . . . . . Impact . | . . . . . Kinetic . | . . . . . Secondary . | . . . . . Self-Inflicted Damage 61 | . . 48 13 . Shots 2 | . . 1 1 . Rammed 1 | . . . 1 . Targets Rammed 1 | . . . 1 . Kicked . | . . . . . Crushed . | . . . . . Highest Temperature 777 | . 48 129 777 196 Average Temperature 183 | . 29 71 300 122 Received Heat Transfer 1206 | . 48 99 285 774 Effects 24 | . . . 24 . Shutdowns 3 | . . . 3 . Energy Bleed 4 | . . . 4 . Interference 1 | . . . 1 . Matter Decay 3 | . . . 3 . Short Circuit 4 | . . . 4 . Damage (minor) 1 | . . . 1 . Damage (major) 6 | . . . 6 . Damage (core) 2 | . . . 2 . Siege Activations . | . . . . . Martial Activations . | . . . . . Shielding Activations . | . . . . . Robots Disrupted . | . . . . . Combat Hostiles . | . . . . . Robots Corrupted . | . . . . . Combat Hostiles . | . . . . . Parts Fried . | . . . . . Impact Corruptions . | . . . . . Robots Melted . | . . . . . Combat Hostiles . | . . . . . Parts Melted . | . . . . . Heat Transferred 559 | . . 200 148 211 Parts Sabotaged . | . . . . . Parts Stolen . | . . . . . Parts Stripped . | . . . . . Power Chain Reactions 1 | . . 1 . . Alert | -11 -10 -10 -9 -8 ------- Run | Yrd Mat Min Mat Mat Maximum Alert Level . | . . . . . Low Security (%) 100 | 100 100 100 100 100 Level 1 . | . . . . . Level 2 . | . . . . . Level 3 . | . . . . . Level 4 . | . . . . . Level 5 . | . . . . . High Security . | . . . . . Max Security . | . . . . . Peak Influence 147 | 20 40 58 147 95 Initial 55 | . 6 . . 55 Average 17 | 3 6 7 27 49 Influence Increases 575 | 25 53 78 274 145 Destroy 0b10 Robot/C 340 | 20 40 40 160 80 Destroy 0b10 Robot/NC 5 | 5 . . . . Destroy Leader 80 | . 10 10 40 20 Successful Hack 5 | . 3 . 2 . Disable Machine 45 | . . 15 30 . Destroy Structure 40 | . . 13 27 . Lose Combat Pursuer 60 | . . . 15 45 Influence Decreases 575 | 15 63 78 143 276 Entered New Map 80 | . 4 . . 76 Time Decay 345 | 15 59 68 123 80 Lost Part 150 | . . 10 20 120 Squads Dispatched 7 | . 1 . 3 3 Investigation 4 | . 1 . 2 1 Extermination . | . . . . . Reinforcement 2 | . . . 1 1 Assault . | . . . . . Garrison 1 | . . . . 1 Intercept . | . . . . . Searches Triggered . | . . . . . Construction Impeded . | . . . . . Haulers Reinforced . | . . . . . Active Scanning Responses . | . . . . . Cargo Convoy Interrupts . | . . . . . Stealth | -11 -10 -10 -9 -8 --------- Run | Yrd Mat Min Mat Mat Distress Signals 4 | . . . 1 3 Communications Jammed . | . . . . . Distress Signals . | . . . . . Times Spotted 42 | 1 2 2 22 15 Peak Tracking Total 10 | 1 2 2 7 10 Tactical Retreats 3 | . . . 1 2 Traps | -11 -10 -10 -9 -8 ------- Run | Yrd Mat Min Mat Mat Traps Triggered 5 | . . 1 3 1 Indirectly . | . . . . . Trap Hack Attempts . | . . . . . Triggered . | . . . . . Disarmed . | . . . . . Reprogrammed . | . . . . . Reused . | . . . . . Traps Extracted . | . . . . . Installed . | . . . . . Triggered . | . . . . . Machines | -11 -10 -10 -9 -8 ---------- Run | Yrd Mat Min Mat Mat Machines Disabled 3 | . . 1 2 . Max in Single Turn 1 | . . 1 1 . Machines Repaired . | . . . . . Machines Dismantled . | . . . . . Machines Sabotaged . | . . . . . Overloaded Fab Kills . | . . . . . Hacking | -11 -10 -10 -9 -8 --------- Run | Yrd Mat Min Mat Mat Machines Accessed 6 | . 2 1 3 . Terminals 1 | . . . 1 . Fabricators . | . . . . . Repair Stations 2 | . 1 . 1 . Recycling Units 1 | . 1 . . . Scanalyzers 1 | . . . 1 . Garrison Access . | . . . . . Total Hacks 23 | . 12 1 10 . Successful 17 | . 10 1 6 . Failed 6 | . 2 . 4 . Catastrophic . | . . . . . Database Lockouts . | . . . . . Manual . | . . . . . Terminals 3 | . . . 3 . Fabricators . | . . . . . Repair Stations 9 | . 7 . 2 . Recycling Units 5 | . 5 . . . Scanalyzers 5 | . . . 5 . Garrison Access . | . . . . . Terminal Hacks 2 | . . 1 1 . Open Door 1 | . . 1 . . Alert Level 1 | . . . 1 . Fabricator Hacks . | . . . . . Repair Station Hacks 7 | . 6 . 1 . Scan Component 4 | . 3 . 1 . Repair 3 | . 3 . . . Recycling Unit Hacks 4 | . 4 . . . Recycle Component 2 | . 2 . . . Process 1 | . 1 . . . Retrieve Matter 1 | . 1 . . . Scanalyzer 4 | . . . 4 . Insert Component 2 | . . . 2 . Analyze 1 | . . . 1 . Retrieve Study 1 | . . . 1 . Garrison Access Hacks . | . . . . . Unauthorized Hacks . | . . . . . Terminals . | . . . . . Fabricators . | . . . . . Repair Stations . | . . . . . Recycling Units . | . . . . . Scanalyzers . | . . . . . Garrison Access . | . . . . . Data Cores Recovered . | . . . . . Used . | . . . . . Hacking Detections 3 | . 1 . 2 . Full Trace Events 3 | . 1 . 2 . Feedback Events 1 | . 1 . . . Corruption 1 | . 1 . . . Feedback Blocked . | . . . . . Robot Schematics Acquired . | . . . . . Robots Built . | . . . . . Authchips . | . . . . . Time . | . . . . . Total Robot Build Rating . | . . . . . Part Schematics Acquired 1 | . . . 1 . Parts Built . | . . . . . Authchips . | . . . . . Time . | . . . . . Total Part Build Rating . | . . . . . Part Studies Acquired . | . . . . . Parts Repaired 3 | . 3 . . . Time 78 | . 78 . . . Parts Recycled 2 | . 2 . . . Recycled Matter 30 | . 30 . . . Retrieved Matter 30 | . 30 . . . Retrieved Components . | . . . . . Parts Scanalyzed 1 | . . . 1 . Part Schematics Acquired 1 | . . . 1 . Parts Damaged . | . . . . . Bothacking | -11 -10 -10 -9 -8 ------------ Run | Yrd Mat Min Mat Mat Used RIF Installer . | . . . . . Robots Hacked . | . . . . . Non-combat . | . . . . . Combat . | . . . . . Robot Hacks Applied . | . . . . . Relay Couplers Released . | . . . . . Fabnet Peak Effective % . | . . . . . Robots Rewired . | . . . . . Allies Hacked . | . . . . . Hacks Repelled . | . . . . . Allies | -11 -10 -10 -9 -8 -------- Run | Yrd Mat Min Mat Mat Total Allies . | . . . . . Largest Group . | . . . . . Highest-Rated Group . | . . . . . Highest-Rated Ally . | . . . . . Total Orders . | . . . . . Ally Attacks . | . . . . . Total Damage . | . . . . . Kills . | . . . . . Allies Corrupted . | . . . . . Allies Melted . | . . . . . Intel | -11 -10 -10 -9 -8 ------- Run | Yrd Mat Min Mat Mat Active Infowar (turns) . | . . . . . Robot Analysis Total . | . . . . . Derelict Logs Recovered 1 | . . 1 . . Drone Launches . | . . . . . Drone Recoveries . | . . . . . Exploration | -11 -10 -10 -9 -8 ------------- Run | Yrd Mat Min Mat Mat Turns Passed 1668 | 85 334 537 545 167 Spaces Moved 1316 | 87 286 493 378 72 Core 34 | 32 . . . 2 Treads . | . . . . . Legs . | . . . . . Wheels 1281 | 55 286 493 378 69 Hover 1 | . . . . 1 Flight . | . . . . . Fastest Speed 50 | 50 80 80 95 98 Average Speed 105 | 68 101 99 120 123 Slowest Speed 750 | 80 110 110 150 750 Overloaded Moves . | . . . . . Propulsion Burnouts . | . . . . . Robots Hopped . | . . . . . Potential Cave-ins . | . . . . . Cave-ins Triggered . | . . . . . Exploration Rate (%) 34 | 8 31 83 40 9 Regions Visited 4 Branch Regions 1 Pre-discovered Areas 1 | . . 1 . . Known Exits Taken . | . . . . . Unknown Exits Taken 4 | 1 1 1 1 . Scrap Searched 1 | . . 1 . . Spaces Dug . | . . . . . Terrain Destroyed 39 | . . 14 25 . Melee . | . . . . . Projectile . | . . . . . AOE 39 | . . 14 25 . Terrain Rammed . | . . . . . Walls Destroyed . | . . . . . Machines Disabled . | . . . . . Actions | -11 -10 -10 -9 -8 --------- Run | Yrd Mat Min Mat Mat Total 1484 | 105 313 527 423 116 Wait 20 | . 11 9 . . Move 1312 | 86 285 492 377 72 Hop . | . . . . . Pick Up 36 | 10 5 6 8 7 Fast Attach 3 | 1 1 1 . . Attach 18 | 5 1 1 4 7 Detach . | . . . . . Swap 24 | . 3 4 11 6 Drop 10 | . . 5 . 5 Fire 60 | 3 7 9 22 19 Melee . | . . . . . Ram 1 | . . . 1 . Kick . | . . . . . Crush . | . . . . . Escape Stasis . | . . . . . Rewire . | . . . . . Trap . | . . . . . Miscellaneous . | . . . . . Route ------- -11/Scrapyard -10/Materials -10/Mines -9/Materials -8/Materials History --------- Turn | Location | Event 2 | -11/Scrapyard | Met Revision 17 69 | -11/Scrapyard | Discovered new exit (range 8) 86 | -11/Scrapyard | Entered Materials 166 | -10/Materials | Repaired Wheel 192 | -10/Materials | Repaired Wheel? 269 | -10/Materials | Repaired Core Shielding? 295 | -10/Materials | Discovered new exit (range 16) 308 | -10/Materials | Build established: Mutant 420 | -10/Materials | Entered Mines 575 | -10/Mines | YI-UF0 nonchalantly dropped a Grenade Launcher on the ground 588 | -10/Mines | Learned Materials terminal intel 659 | -10/Mines | Learned location of Storage (-7) 877 | -10/Mines | Met a Derelict who couldn't figure out how to use a Trap Extractor 943 | -10/Mines | Discovered new exit (range 6) 957 | -10/Mines | Entered Materials 957 | -9/Materials | Evolved 2 slots: Utility x1, Weapon x1 958 | -9/Materials | Loaded intel: 12 terminal locations 1282 | -9/Materials | Build established: Tank 1468 | -9/Materials | Discovered new exit (range 16) 1499 | -9/Materials | Core integrity fell below 50% 1502 | -9/Materials | Entered another Materials area 1502 | -8/Materials | Evolved 2 slots: Power x1, Propulsion x1 1633 | -8/Materials | Garrison activated, responded to threat 1659 | -8/Materials | Core integrity fell below 50% 1667 | -8/Materials | Core integrity fell below 20% 1669 | -8/Materials | Destroyed by G-47 Trooper with Particle Gun Last Messages --------------- Hvy. Assault Rifle destroyed. G-47 Trooper destroyed. Arm. Wheel destroyed. Flak Gun destroyed. R-06 Scavenger collects Lgt. Nuclear Core. W-25 Informer sends out distress signal. Y-45 Defender destroyed. Destroyed Lgt. Angular Momentum Engine. EM Pulse Gun destroyed. Sml. Laser destroyed. Cld. Ion Engine destroyed. R-06 Scavenger collects Lgt. Armor Plating. R-06 Scavenger collects Heat Sink. K-01 Serf collects debris. W-25 Informer sends out distress signal. Airjet destroyed. Lrg. Matter Pod destroyed. K-01 Serf collects debris. R-06 Scavenger collects Hvy. Assault Rifle. [Achievement: First Step to Greatness] Map ----- +----------------------------------------------------+ | ?????????????????????????????????????????????????? | | ?????????????????????????????????????????????????? | | ?????????????????????????????????????????????????? | | ?????????????################????????????????????? | | ?????????????# [ #????????????????????? | | ?????????????#=*] #????????????????????? | | ?????????????# [ #####????????????????? | | ?????????????####+####### !!#????????????????? | | ???????????????# # # !#????????????????? | | ???????????????#!!!# # ]]#????????????????? | | ???????????????#!! # + ]]#????????????????? | | ???????????????#!! # # [#????????????????? | | ???????????????# # # [[#????????????????? | | ???????????????# # ""?# ########?????????????? | | ???????????????# # "T?# # #?????????????? | | ???????????????##### "??#=! # """ #?????????????? | | ???????????????????# ??#* # """ #?????????????? | | ???????????????????##???# + """ #?????????????? | | ????????????????????????# # """ #?????????????? | | ????????????????????????# # #?????????????? | | ???????????????????????## ########?????????????? | | ???????????????????????# ##############??????? | | ???????????????????????# g ????? | | ???????????????????????# % u ????? | | ???????????????????????#r g k ????? | | ???????????????????????# @! ###############?????? | | ???????????????????????##ggg##???????????????????? | | ????????????????????????#*g #????????????????????? | | ????????????????????????#og #????????????????????? | | ??????????????????????? + +????????????????????? | | ??????????????????????" # #????????????????????? | | ????????????????????? # #????????????????????? | | ????????????????????" ?# #????????????????????? | | ???????????????????"" ??# #????????????????????? | | ?????????????????? ??# #????????????????????? | | ??????????????????###???# % #????????????????????? | | ????????????????????????+ #????????????????????? | | ????????????????????????# *#????????????????????? | | ????????????????????????# =%#????????????????????? | | ????????????????????????# a#????????????????????? | | ????????????????????????# u ?????????????????????? | | ????????????????????????? ?????????????????????? | | ?????????????????????????????????????????????????? | | ?????????????????????????????????????????????????? | | ?????????????????????????????????????????????????? | | ?????????????????????????????????????????????????? | | ?????????????????????????????????????????????????? | | ?????????????????????????????????????????????????? | | ?????????????????????????????????????????????????? | | ?????????????????????????????????????????????????? | +----------------------------------------------------+ Best States ------------- Heat Dissipation 35 Coolant Potential 65 Energy Generation 19 Energy Capacity 480 Matter Stores 450 Matter Capacity 450 Sight Range 16 Terrain Scan Density 10 Armor Coverage 225 Core Shielding 20 Evasion (%) 50 Trap Extractor Capacity 6 Item Schematics ----------------- Lrg. Battery | -9/Materials | Scanalyzed Robot Schematics ------------------ None Fabricated ------------ Nothing Repaired ---------- Wheel | 85% | -10/Materials Core Shielding | 54% | -10/Materials Studied --------- None Alien Tech Used ----------------- None Achievements -------------- First Step to Greatness For Emergencies Only I Have A Map? Let's See Who's Tougher One Hack Too Far Organ Harvest Part-time Mechanic Risk Taker Storm Trooper There's More Where That Came From Troublemaker Uninvited Guest Well Done Challenges ------------ None Game ------ Seed DispersionRefineryDetector Manual? 0 Play Time 00:40:49 Cumulative 0.6 hours Start 2025.10.25 @ 13:41:42 End 2025.10.25 @ 15:16:36 Sessions 3 Manual Loads 0 Difficulty Rogue Special Mode None Game No. 1 Rogue 1 Adventurer 0 Explorer 0 Win Type - Total 0 Types 0/0/0/0/0/0/0/0/0/0 Lore% 0 Gallery% 2 Achievement% 2 Wizard Run 0 Options --------- Layout 1 ASCII 0 Keyboard 0 Movement Mouse Keybinds 0 Fullscreen 2 Font 24/Smallcaps Map View 50x35 Zoom Use 3% Tactical HUD 0 Map Filters NONE Filters NONE Steam 1 RUN: e3f3f516-ef1f-44f7-bc11-040035b61642